[Event "Titled Tuesday Blitz November 14 Early 2023"]
[White "Tikhonov, Viacheslav"]
[Black "Rozman, Levy"]
[WhiteFideId "44196407"]
[BlackFideId "2039877"]
[WhiteElo "2596"]
[BlackElo "2690"]
[Result "0-1"]
[Round "11"]
[TimeControl "180+1"]
[Date "2023.11.14"]
[WhiteClock "0:00:00"]
[BlackClock "0:00:09"]
[Board "58"]

1. e4 {[%clk 0:03:00]}  d5 {[%clk 0:02:55]} 2. exd5 {[%clk 0:03:01]}  Qxd5 {[%clk 0:02:55]} 3. Nc3 {[%clk 0:03:01]}  Qa5 {[%clk 0:02:56]} 4. d4 {[%clk 0:03:01]}  Nf6 {[%clk 0:02:56]} 5. Nf3 {[%clk 0:03:00]}  Bf5 {[%clk 0:02:57]} 6. Bc4 {[%clk 0:02:59]}  e6 {[%clk 0:02:57]} 7. O-O {[%clk 0:02:59]}  Bb4 {[%clk 0:02:57]} 8. Bd2 {[%clk 0:02:55]}  Nc6 {[%clk 0:02:57]} 9. a3 {[%clk 0:02:51]}  Bxc3 {[%clk 0:02:57]} 10. Bxc3 {[%clk 0:02:52]}  Qb6 {[%clk 0:02:58]} 11. Qe2 {[%clk 0:02:39]}  Rd8 {[%clk 0:02:50]} 12. Rfd1 {[%clk 0:02:33]}  O-O {[%clk 0:02:47]} 13. b4 {[%clk 0:02:08]}  Bg4 {[%clk 0:02:24]} 14. Rac1 {[%clk 0:00:53]}  Bxf3 {[%clk 0:02:16]} 15. Qxf3 {[%clk 0:00:54]}  Nxd4 {[%clk 0:02:17]} 16. Qe3 {[%clk 0:00:44]}  Nf5 {[%clk 0:01:52]} 17. Qxb6 {[%clk 0:00:39]}  axb6 {[%clk 0:01:53]} 18. Be5 {[%clk 0:00:36]}  Nd6 {[%clk 0:01:41]} 19. Bb3 {[%clk 0:00:31]}  b5 {[%clk 0:01:26]} 20. a4 {[%clk 0:00:28]}  bxa4 {[%clk 0:01:25]} 21. Bxa4 {[%clk 0:00:29]}  Nd5 {[%clk 0:01:21]} 22. c4 {[%clk 0:00:18]}  Nxb4 {[%clk 0:01:15]} 23. c5 {[%clk 0:00:18]}  Ne4 {[%clk 0:01:00]} 24. Bxc7 {[%clk 0:00:16]}  Rxd1+ {[%clk 0:00:55]} 25. Bxd1 {[%clk 0:00:15]}  Nd3 {[%clk 0:00:52]} 26. Rb1 {[%clk 0:00:13]}  Nexc5 {[%clk 0:00:49]} 27. Bf3 {[%clk 0:00:09]}  Rc8 {[%clk 0:00:39]} 28. Bd6 {[%clk 0:00:09]}  Rd8 {[%clk 0:00:39]} 29. Bxc5 {[%clk 0:00:03]}  Nxc5 {[%clk 0:00:39]} 30. Rb5 {[%clk 0:00:04]}  Rc8 {[%clk 0:00:30]} 31. h4 {[%clk 0:00:04]}  Rc7 {[%clk 0:00:31]} 32. Ra5 {[%clk 0:00:04]}  g6 {[%clk 0:00:30]} 33. Ra7 {[%clk 0:00:04]}  e5 {[%clk 0:00:29]} 34. Bd5 {[%clk 0:00:03]}  Kg7 {[%clk 0:00:28]} 35. h5 {[%clk 0:00:03]}  gxh5 {[%clk 0:00:26]} 36. Bf3 {[%clk 0:00:03]}  h4 {[%clk 0:00:24]} 37. Kh2 {[%clk 0:00:03]}  e4 {[%clk 0:00:21]} 38. Be2 {[%clk 0:00:01]}  Ne6 {[%clk 0:00:20]} 39. Kh3 {[%clk 0:00:01]}  Nf4+ {[%clk 0:00:20]} 40. Kxh4 {[%clk 0:00:01]}  Nxe2 {[%clk 0:00:20]} 41. Kg4 {[%clk 0:00:02]}  Nc3 {[%clk 0:00:16]} 42. Kf5 {[%clk 0:00:01]}  Rc5+ {[%clk 0:00:15]} 43. Kf4 {[%clk 0:00:01]}  b5 {[%clk 0:00:14]} 44. Rb7 {[%clk 0:00:02]}  Rc4 {[%clk 0:00:13]} 45. g4 {[%clk 0:00:02]}  e3+ {[%clk 0:00:11]} 46. Kxe3 {[%clk 0:00:01]}  Rxg4 {[%clk 0:00:11]} 47. Kd3 {[%clk 0:00:02]}  Rc4 {[%clk 0:00:10]} 48. Ke3 {[%clk 0:00:00]}  Rc6 {[%clk 0:00:09]} 0-1


[Site "https://www.chess.com"]

[Event "Titled Tuesday Blitz November 14 Early 2023"]
[White "Skliarov, Viktor"]
[Black "Derjabin, Ilja"]
[WhiteFideId "14106736"]
[BlackFideId "14104768"]
[WhiteElo "2660"]
[BlackElo "2573"]
[Result "1-0"]
[Round "11"]
[TimeControl "180+1"]
[Date "2023.11.14"]
[WhiteClock "0:00:11"]
[BlackClock "0:00:02"]
[Board "60"]

1. e4 {[%clk 0:03:00]}  c5 {[%clk 0:02:56]} 2. Nf3 {[%clk 0:03:00]}  d6 {[%clk 0:02:56]} 3. d4 {[%clk 0:02:58]}  cxd4 {[%clk 0:02:55]} 4. Qxd4 {[%clk 0:02:58]}  Bd7 {[%clk 0:02:44]} 5. c4 {[%clk 0:02:55]}  Nc6 {[%clk 0:02:43]} 6. Qd2 {[%clk 0:02:55]}  Nf6 {[%clk 0:02:42]} 7. Nc3 {[%clk 0:02:54]}  g6 {[%clk 0:02:40]} 8. b3 {[%clk 0:02:53]}  Bg7 {[%clk 0:02:40]} 9. Bb2 {[%clk 0:02:54]}  O-O {[%clk 0:02:39]} 10. Be2 {[%clk 0:02:53]}  Rc8 {[%clk 0:02:33]} 11. O-O {[%clk 0:02:52]}  Bg4 {[%clk 0:02:27]} 12. Rfd1 {[%clk 0:02:45]}  Bxf3 {[%clk 0:02:26]} 13. Bxf3 {[%clk 0:02:45]}  Ne5 {[%clk 0:02:23]} 14. Be2 {[%clk 0:02:45]}  Qa5 {[%clk 0:02:20]} 15. h3 {[%clk 0:02:15]}  Rfe8 {[%clk 0:02:18]} 16. f4 {[%clk 0:02:13]}  Nc6 {[%clk 0:02:12]} 17. Bf3 {[%clk 0:02:11]}  Nh5 {[%clk 0:01:58]} 18. Bxh5 {[%clk 0:01:37]}  Qxh5 {[%clk 0:01:57]} 19. Nd5 {[%clk 0:01:37]}  Bxb2 {[%clk 0:01:32]} 20. Qxb2 {[%clk 0:01:36]}  a5 {[%clk 0:01:25]} 21. Kh2 {[%clk 0:01:34]}  Nb4 {[%clk 0:01:20]} 22. Nxb4 {[%clk 0:01:02]}  axb4 {[%clk 0:01:19]} 23. Rd5 {[%clk 0:01:02]}  Qh6 {[%clk 0:01:15]} 24. Qf2 {[%clk 0:00:58]}  Rc5 {[%clk 0:00:52]} 25. Rad1 {[%clk 0:00:58]}  b6 {[%clk 0:00:52]} 26. g3 {[%clk 0:00:53]}  Ra8 {[%clk 0:00:51]} 27. e5 {[%clk 0:00:48]}  dxe5 {[%clk 0:00:49]} 28. fxe5 {[%clk 0:00:48]}  Rxd5 {[%clk 0:00:43]} 29. cxd5 {[%clk 0:00:46]}  Qg5 {[%clk 0:00:39]} 30. Qe2 {[%clk 0:00:31]}  Rd8 {[%clk 0:00:33]} 31. d6 {[%clk 0:00:28]}  exd6 {[%clk 0:00:33]} 32. exd6 {[%clk 0:00:29]}  Qf6 {[%clk 0:00:11]} 33. d7 {[%clk 0:00:26]}  Qe6 {[%clk 0:00:11]} 34. Qd2 {[%clk 0:00:19]}  h5 {[%clk 0:00:07]} 35. h4 {[%clk 0:00:19]}  Kh7 {[%clk 0:00:05]} 36. Qd3 {[%clk 0:00:14]}  Kh6 {[%clk 0:00:02]} 37. Rd2 {[%clk 0:00:14]}  Kh7 {[%clk 0:00:03]} 38. Qd6 {[%clk 0:00:10]}  Qxd6 {[%clk 0:00:02]} 39. Rxd6 {[%clk 0:00:09]}  Kg7 {[%clk 0:00:03]} 40. Kh3 {[%clk 0:00:09]}  Kf8 {[%clk 0:00:03]} 41. Rxb6 {[%clk 0:00:10]}  Rxd7 {[%clk 0:00:03]} 42. Rxb4 {[%clk 0:00:10]}  Ra7 {[%clk 0:00:02]} 43. a4 {[%clk 0:00:10]}  f6 {[%clk 0:00:02]} 44. Rb5 {[%clk 0:00:10]}  Kg7 {[%clk 0:00:03]} 45. a5 {[%clk 0:00:11]}  g5 {[%clk 0:00:03]} 46. hxg5 {[%clk 0:00:11]}  fxg5 {[%clk 0:00:04]} 47. Rxg5+ {[%clk 0:00:11]}  Kh6 {[%clk 0:00:04]} 48. Rb5 {[%clk 0:00:12]}  Rc7 {[%clk 0:00:03]} 49. b4 {[%clk 0:00:11]}  Rc3 {[%clk 0:00:03]} 50. a6 {[%clk 0:00:11]}  h4 {[%clk 0:00:04]} 51. Kxh4 {[%clk 0:00:11]}  Rc4+ {[%clk 0:00:04]} 52. Kh3 {[%clk 0:00:11]}  Rxb4 {[%clk 0:00:02]} 53. Rxb4 {[%clk 0:00:11]} 1-0


[Site "https://www.chess.com"]

[Event "Titled Tuesday Blitz November 14 Early 2023"]
[White "Novik, Maxim"]
[Black "Bao, Qilin"]
[WhiteFideId "4102924"]
[BlackFideId "8605750"]
[WhiteElo "2549"]
[BlackElo "2650"]
[Result "0-1"]
[Round "11"]
[TimeControl "180+1"]
[Date "2023.11.14"]
[WhiteClock "0:00:51"]
[BlackClock "0:02:38"]
[Board "61"]

1. e4 {[%clk 0:02:02]}  c6 {[%clk 0:02:56]} 2. d4 {[%clk 0:01:59]}  d5 {[%clk 0:02:57]} 3. Nc3 {[%clk 0:01:59]}  dxe4 {[%clk 0:02:57]} 4. Nxe4 {[%clk 0:00:58]}  Bf5 {[%clk 0:02:55]} 5. Ng3 {[%clk 0:00:58]}  Bg6 {[%clk 0:02:55]} 6. h4 {[%clk 0:00:59]}  h6 {[%clk 0:02:56]} 7. Nf3 {[%clk 0:00:59]}  Nd7 {[%clk 0:02:55]} 8. h5 {[%clk 0:01:00]}  Bh7 {[%clk 0:02:56]} 9. Bd3 {[%clk 0:01:01]}  Bxd3 {[%clk 0:02:56]} 10. Qxd3 {[%clk 0:01:01]}  Qc7 {[%clk 0:02:57]} 11. Bd2 {[%clk 0:01:01]}  O-O-O {[%clk 0:02:56]} 12. O-O-O {[%clk 0:01:02]}  e6 {[%clk 0:02:57]} 13. Ne4 {[%clk 0:01:02]}  c5 {[%clk 0:02:56]} 14. g3 {[%clk 0:00:57]}  cxd4 {[%clk 0:02:49]} 15. Bf4 {[%clk 0:00:57]}  e5 {[%clk 0:02:46]} 16. Bd2 {[%clk 0:00:57]}  f5 {[%clk 0:02:40]} 17. Nh4 {[%clk 0:00:51]}  fxe4 {[%clk 0:02:38]} 0-1


[Site "https://www.chess.com"]

[Event "Titled Tuesday Blitz November 14 Early 2023"]
[White "GatoRojo150"]
[Black "Yaksin, Oleg"]
[BlackFideId "24105880"]
[WhiteElo "2635"]
[BlackElo "2543"]
[Result "1-0"]
[Round "11"]
[TimeControl "180+1"]
[Date "2023.11.14"]
[WhiteClock "0:00:17"]
[BlackClock "0:00:00"]
[Board "62"]

1. e4 {[%clk 0:03:00]}  c5 {[%clk 0:02:45]} 2. Nf3 {[%clk 0:03:00]}  d6 {[%clk 0:02:44]} 3. d4 {[%clk 0:02:55]}  cxd4 {[%clk 0:02:45]} 4. Nxd4 {[%clk 0:02:56]}  Nf6 {[%clk 0:02:46]} 5. Nc3 {[%clk 0:02:56]}  Nc6 {[%clk 0:02:46]} 6. Bc4 {[%clk 0:02:56]}  Qb6 {[%clk 0:02:45]} 7. Nxc6 {[%clk 0:02:54]}  bxc6 {[%clk 0:02:45]} 8. O-O {[%clk 0:02:54]}  g6 {[%clk 0:02:41]} 9. Be3 {[%clk 0:02:54]}  Qc7 {[%clk 0:02:40]} 10. h3 {[%clk 0:02:52]}  Bg7 {[%clk 0:02:40]} 11. Qd2 {[%clk 0:02:51]}  O-O {[%clk 0:02:40]} 12. Rad1 {[%clk 0:02:50]}  a5 {[%clk 0:02:36]} 13. b3 {[%clk 0:02:45]}  Ba6 {[%clk 0:02:26]} 14. Bxa6 {[%clk 0:02:41]}  Rxa6 {[%clk 0:02:27]} 15. Bh6 {[%clk 0:02:41]}  Nd7 {[%clk 0:02:16]} 16. Bxg7 {[%clk 0:02:38]}  Kxg7 {[%clk 0:02:17]} 17. f4 {[%clk 0:02:38]}  Ra7 {[%clk 0:02:02]} 18. Kh2 {[%clk 0:02:35]}  f6 {[%clk 0:01:47]} 19. Kh1 {[%clk 0:02:28]}  Raa8 {[%clk 0:01:44]} 20. Ne2 {[%clk 0:02:21]}  Nc5 {[%clk 0:01:38]} 21. Qe3 {[%clk 0:02:04]}  e5 {[%clk 0:01:29]} 22. f5 {[%clk 0:01:56]}  Rad8 {[%clk 0:01:24]} 23. c4 {[%clk 0:01:47]}  Qb8 {[%clk 0:01:03]} 24. Rb1 {[%clk 0:01:25]}  Qb4 {[%clk 0:01:01]} 25. Ng3 {[%clk 0:01:16]}  Rd7 {[%clk 0:00:55]} 26. Qf3 {[%clk 0:01:14]}  Qd2 {[%clk 0:00:49]} 27. Rf2 {[%clk 0:01:10]}  Qg5 {[%clk 0:00:47]} 28. Rd1 {[%clk 0:01:07]}  Rfd8 {[%clk 0:00:46]} 29. Kg1 {[%clk 0:01:05]}  Na6 {[%clk 0:00:36]} 30. Rdf1 {[%clk 0:01:00]}  Rf7 {[%clk 0:00:35]} 31. Qc3 {[%clk 0:00:47]}  Nc5 {[%clk 0:00:10]} 32. Rf3 {[%clk 0:00:43]}  Ra8 {[%clk 0:00:09]} 33. a3 {[%clk 0:00:33]}  Nb7 {[%clk 0:00:09]} 34. b4 {[%clk 0:00:33]}  axb4 {[%clk 0:00:10]} 35. axb4 {[%clk 0:00:34]}  Rd8 {[%clk 0:00:10]} 36. Ne2 {[%clk 0:00:31]}  d5 {[%clk 0:00:08]} 37. cxd5 {[%clk 0:00:28]}  cxd5 {[%clk 0:00:09]} 38. Rg3 {[%clk 0:00:29]}  Qh5 {[%clk 0:00:09]} 39. Rgf3 {[%clk 0:00:28]}  dxe4 {[%clk 0:00:09]} 40. Ng3 {[%clk 0:00:27]}  Qh4 {[%clk 0:00:07]} 41. Qc4 {[%clk 0:00:24]}  Nd6 {[%clk 0:00:07]} 42. fxg6 {[%clk 0:00:19]}  Nxc4 {[%clk 0:00:06]} 43. Nf5+ {[%clk 0:00:18]}  Kf8 {[%clk 0:00:03]} 44. Nxh4 {[%clk 0:00:17]}  exf3 {[%clk 0:00:02]} 45. gxf7 {[%clk 0:00:17]}  fxg2 {[%clk 0:00:00]} 46. Rxf6 {[%clk 0:00:17]} 1-0


[Site "https://www.chess.com"]

[Event "Titled Tuesday Blitz November 14 Early 2023"]
[White "Stark, Lars"]
[Black "Chernomordik, Pavel"]
[WhiteFideId "4676386"]
[BlackFideId "2804530"]
[WhiteElo "2627"]
[BlackElo "2542"]
[Result "0-1"]
[Round "11"]
[TimeControl "180+1"]
[Date "2023.11.14"]
[WhiteClock "0:00:00"]
[BlackClock "0:00:13"]
[Board "63"]

1. c4 {[%clk 0:03:00]}  g6 {[%clk 0:03:00]} 2. g3 {[%clk 0:02:59]}  Bg7 {[%clk 0:03:01]} 3. Bg2 {[%clk 0:02:59]}  e5 {[%clk 0:03:01]} 4. Nc3 {[%clk 0:03:00]}  Nc6 {[%clk 0:03:01]} 5. e3 {[%clk 0:03:00]}  d6 {[%clk 0:03:01]} 6. Nge2 {[%clk 0:03:01]}  Be6 {[%clk 0:03:02]} 7. d3 {[%clk 0:03:01]}  Qd7 {[%clk 0:03:00]} 8. Qd2 {[%clk 0:03:01]}  Bh3 {[%clk 0:02:55]} 9. Bf3 {[%clk 0:03:01]}  Nge7 {[%clk 0:02:48]} 10. b4 {[%clk 0:02:54]}  O-O {[%clk 0:02:37]} 11. b5 {[%clk 0:02:52]}  Nd8 {[%clk 0:02:36]} 12. Ba3 {[%clk 0:02:52]}  Rc8 {[%clk 0:02:26]} 13. Nc1 {[%clk 0:02:44]}  f5 {[%clk 0:02:14]} 14. Nb3 {[%clk 0:02:42]}  c6 {[%clk 0:02:03]} 15. bxc6 {[%clk 0:02:40]}  bxc6 {[%clk 0:02:03]} 16. d4 {[%clk 0:02:35]}  Ne6 {[%clk 0:01:50]} 17. dxe5 {[%clk 0:02:17]}  Bxe5 {[%clk 0:01:49]} 18. Rd1 {[%clk 0:02:18]}  Ng5 {[%clk 0:01:44]} 19. Be2 {[%clk 0:02:18]}  Bg2 {[%clk 0:01:42]} 20. Rg1 {[%clk 0:02:17]}  Nf3+ {[%clk 0:01:41]} 21. Bxf3 {[%clk 0:02:17]}  Bxf3 {[%clk 0:01:42]} 22. Rc1 {[%clk 0:02:16]}  Qe6 {[%clk 0:01:41]} 23. Nd4 {[%clk 0:02:15]}  Bxd4 {[%clk 0:01:36]} 24. Qxd4 {[%clk 0:02:15]}  c5 {[%clk 0:01:33]} 25. Qd3 {[%clk 0:02:13]}  Nc6 {[%clk 0:01:31]} 26. Nb5 {[%clk 0:02:08]}  Rfd8 {[%clk 0:01:28]} 27. Bb2 {[%clk 0:02:05]}  a6 {[%clk 0:01:25]} 28. Na3 {[%clk 0:02:01]}  Ne5 {[%clk 0:01:25]} 29. Qc3 {[%clk 0:01:56]}  Rb8 {[%clk 0:01:25]} 30. Ba1 {[%clk 0:01:55]}  Be4 {[%clk 0:01:22]} 31. f4 {[%clk 0:01:52]}  Nd3+ {[%clk 0:01:00]} 32. Kd2 {[%clk 0:01:49]}  Kf7 {[%clk 0:00:56]} 33. Rb1 {[%clk 0:01:36]}  Nb4 {[%clk 0:00:49]} 34. Rb3 {[%clk 0:01:22]}  d5 {[%clk 0:00:48]} 35. Qg7+ {[%clk 0:00:31]}  Ke8 {[%clk 0:00:47]} 36. Qh8+ {[%clk 0:00:32]}  Kd7 {[%clk 0:00:47]} 37. Qf6 {[%clk 0:00:28]}  dxc4 {[%clk 0:00:40]} 38. Rc3 {[%clk 0:00:28]}  Qxf6 {[%clk 0:00:37]} 39. Nxc4 {[%clk 0:00:12]}  Ke8+ {[%clk 0:00:29]} 40. Ke2 {[%clk 0:00:12]}  Nxa2 {[%clk 0:00:24]} 41. Ra3 {[%clk 0:00:11]}  Qe6 {[%clk 0:00:22]} 42. Ne5 {[%clk 0:00:10]}  Nb4 {[%clk 0:00:20]} 43. Rc1 {[%clk 0:00:10]}  Qd5 {[%clk 0:00:18]} 44. Bc3 {[%clk 0:00:09]}  Nd3 {[%clk 0:00:17]} 45. Rca1 {[%clk 0:00:08]}  Nxe5 {[%clk 0:00:17]} 46. fxe5 {[%clk 0:00:07]}  Qd3+ {[%clk 0:00:16]} 47. Kf2 {[%clk 0:00:08]}  Qc2+ {[%clk 0:00:16]} 48. Ke1 {[%clk 0:00:08]}  Rd3 {[%clk 0:00:15]} 49. Ba5 {[%clk 0:00:08]}  Rxa3 {[%clk 0:00:14]} 50. Rxa3 {[%clk 0:00:09]}  Qc1+ {[%clk 0:00:14]} 51. Ke2 {[%clk 0:00:00]}  Rb2+ {[%clk 0:00:13]} 0-1


[Site "https://www.chess.com"]

[Event "Titled Tuesday Blitz November 14 Early 2023"]
[White "Pourkashiyan, Atousa"]
[Black "Khater, Sherif"]
[WhiteFideId "12502014"]
[BlackFideId "2034280"]
[WhiteElo "2537"]
[BlackElo "2625"]
[Result "0-1"]
[Round "11"]
[TimeControl "180+1"]
[Date "2023.11.14"]
[WhiteClock "0:00:00"]
[BlackClock "0:01:00"]
[Board "64"]

1. e4 {[%clk 0:03:00]}  a6 {[%clk 0:03:00]} 2. d4 {[%clk 0:03:00]}  c6 {[%clk 0:02:59]} 3. Nf3 {[%clk 0:03:00]}  d5 {[%clk 0:02:59]} 4. Nc3 {[%clk 0:02:58]}  dxe4 {[%clk 0:02:59]} 5. Nxe4 {[%clk 0:02:58]}  Nf6 {[%clk 0:03:00]} 6. Nxf6+ {[%clk 0:02:54]}  exf6 {[%clk 0:03:01]} 7. Bd3 {[%clk 0:02:43]}  Bd6 {[%clk 0:03:01]} 8. O-O {[%clk 0:02:42]}  O-O {[%clk 0:03:02]} 9. c4 {[%clk 0:02:38]}  Re8 {[%clk 0:03:01]} 10. Qc2 {[%clk 0:02:36]}  h6 {[%clk 0:03:01]} 11. h3 {[%clk 0:02:25]}  Nd7 {[%clk 0:03:00]} 12. c5 {[%clk 0:02:22]}  Bc7 {[%clk 0:03:00]} 13. Bd2 {[%clk 0:02:14]}  Nf8 {[%clk 0:02:59]} 14. Rae1 {[%clk 0:02:13]}  Be6 {[%clk 0:02:59]} 15. Be3 {[%clk 0:02:01]}  Qd7 {[%clk 0:02:54]} 16. Qd1 {[%clk 0:01:16]}  Ng6 {[%clk 0:02:42]} 17. Nd2 {[%clk 0:01:04]}  Nh4 {[%clk 0:02:28]} 18. Qh5 {[%clk 0:00:57]}  Bf5 {[%clk 0:02:06]} 19. Bxf5 {[%clk 0:00:49]}  Nxf5 {[%clk 0:02:04]} 20. Qg4 {[%clk 0:00:46]}  Rad8 {[%clk 0:02:02]} 21. Nf3 {[%clk 0:00:44]}  Qd5 {[%clk 0:01:57]} 22. Nh4 {[%clk 0:00:41]}  Nxh4 {[%clk 0:01:54]} 23. Qxh4 {[%clk 0:00:41]}  Re4 {[%clk 0:01:52]} 24. g4 {[%clk 0:00:34]}  Qxa2 {[%clk 0:01:46]} 25. f3 {[%clk 0:00:28]}  Ree8 {[%clk 0:01:44]} 26. Bxh6 {[%clk 0:00:21]}  Qxb2 {[%clk 0:01:39]} 27. Rxe8+ {[%clk 0:00:12]}  Rxe8 {[%clk 0:01:39]} 28. Rf2 {[%clk 0:00:11]}  Qxd4 {[%clk 0:01:14]} 29. Kg2 {[%clk 0:00:07]}  gxh6 {[%clk 0:01:08]} 30. Qxh6 {[%clk 0:00:08]}  Qf4 {[%clk 0:01:07]} 31. Qh5 {[%clk 0:00:00]}  Re1 {[%clk 0:01:00]} 0-1


[Site "https://www.chess.com"]

[Event "Titled Tuesday Blitz November 14 Early 2023"]
[White "RodokininEV"]
[Black "FoxOnTheRun97"]
[WhiteElo "2529"]
[BlackElo "2613"]
[Result "1-0"]
[Round "11"]
[TimeControl "180+1"]
[Date "2023.11.14"]
[WhiteClock "0:00:17"]
[BlackClock "0:00:00"]
[Board "65"]

1. d4 {[%clk 0:03:00]}  Nf6 {[%clk 0:02:59]} 2. c4 {[%clk 0:03:00]}  e6 {[%clk 0:03:00]} 3. Nf3 {[%clk 0:03:00]}  d5 {[%clk 0:02:58]} 4. Nc3 {[%clk 0:03:00]}  Be7 {[%clk 0:02:56]} 5. Bg5 {[%clk 0:02:57]}  h6 {[%clk 0:02:55]} 6. Bh4 {[%clk 0:02:56]}  O-O {[%clk 0:02:56]} 7. e3 {[%clk 0:02:56]}  b6 {[%clk 0:02:55]} 8. cxd5 {[%clk 0:02:56]}  exd5 {[%clk 0:02:55]} 9. Bd3 {[%clk 0:02:55]}  c5 {[%clk 0:02:52]} 10. O-O {[%clk 0:02:54]}  Nc6 {[%clk 0:02:51]} 11. Rc1 {[%clk 0:02:49]}  c4 {[%clk 0:02:46]} 12. Bb1 {[%clk 0:02:47]}  Bg4 {[%clk 0:02:39]} 13. h3 {[%clk 0:02:39]}  Be6 {[%clk 0:02:30]} 14. b3 {[%clk 0:02:39]}  Ba3 {[%clk 0:02:22]} 15. Bxf6 {[%clk 0:02:29]}  Qxf6 {[%clk 0:02:19]} 16. bxc4 {[%clk 0:02:20]}  dxc4 {[%clk 0:01:48]} 17. Qc2 {[%clk 0:02:13]}  g6 {[%clk 0:01:46]} 18. Rcd1 {[%clk 0:02:13]}  Bxh3 {[%clk 0:01:24]} 19. Qa4 {[%clk 0:02:03]}  Bd6 {[%clk 0:01:18]} 20. Ne4 {[%clk 0:01:58]}  Qe6 {[%clk 0:00:55]} 21. Nxd6 {[%clk 0:01:39]}  Bxg2 {[%clk 0:00:35]} 22. Kxg2 {[%clk 0:01:17]}  Qg4+ {[%clk 0:00:35]} 23. Kh2 {[%clk 0:01:16]}  Qxf3 {[%clk 0:00:32]} 24. Be4 {[%clk 0:01:09]}  Qh5+ {[%clk 0:00:27]} 25. Kg1 {[%clk 0:01:02]}  b5 {[%clk 0:00:25]} 26. Qxb5 {[%clk 0:00:56]}  Qxb5 {[%clk 0:00:17]} 27. Nxb5 {[%clk 0:00:57]}  Rac8 {[%clk 0:00:17]} 28. Rc1 {[%clk 0:00:43]}  Nb4 {[%clk 0:00:14]} 29. a3 {[%clk 0:00:39]}  Na6 {[%clk 0:00:13]} 30. Bb7 {[%clk 0:00:38]}  Nc7 {[%clk 0:00:07]} 31. Bxc8 {[%clk 0:00:31]}  Nxb5 {[%clk 0:00:07]} 32. Ba6 {[%clk 0:00:29]}  Nd6 {[%clk 0:00:04]} 33. Bxc4 {[%clk 0:00:27]}  Kg7 {[%clk 0:00:04]} 34. Bd3 {[%clk 0:00:27]}  Rb8 {[%clk 0:00:04]} 35. Rb1 {[%clk 0:00:26]}  Rd8 {[%clk 0:00:03]} 36. Rfc1 {[%clk 0:00:26]}  h5 {[%clk 0:00:03]} 37. Rc6 {[%clk 0:00:22]}  h4 {[%clk 0:00:03]} 38. a4 {[%clk 0:00:19]}  g5 {[%clk 0:00:02]} 39. a5 {[%clk 0:00:19]}  Ne8 {[%clk 0:00:03]} 40. Rb7 {[%clk 0:00:18]}  Nd6 {[%clk 0:00:02]} 41. Rxd6 {[%clk 0:00:17]}  Rxd6 {[%clk 0:00:00]} 42. a6 {[%clk 0:00:17]} 1-0


[Site "https://www.chess.com"]

[Event "Titled Tuesday Blitz November 14 Early 2023"]
[White "Souleidis, Georgios"]
[Black "Jovic, Stanoje"]
[WhiteFideId "4206827"]
[BlackFideId "905020"]
[WhiteElo "2612"]
[BlackElo "2516"]
[Result "1-0"]
[Round "11"]
[TimeControl "180+1"]
[Date "2023.11.14"]
[WhiteClock "0:00:11"]
[BlackClock "0:00:00"]
[Board "66"]

1. e4 {[%clk 0:03:00]}  c6 {[%clk 0:02:58]} 2. Nc3 {[%clk 0:03:00]}  d5 {[%clk 0:02:57]} 3. Nf3 {[%clk 0:03:01]}  Nf6 {[%clk 0:02:56]} 4. e5 {[%clk 0:03:00]}  Ne4 {[%clk 0:02:56]} 5. Ne2 {[%clk 0:03:01]}  Qb6 {[%clk 0:02:55]} 6. d4 {[%clk 0:03:01]}  f6 {[%clk 0:02:54]} 7. Ng3 {[%clk 0:02:54]}  Bg4 {[%clk 0:02:53]} 8. exf6 {[%clk 0:01:42]}  exf6 {[%clk 0:02:46]} 9. Bd3 {[%clk 0:01:40]}  Nd7 {[%clk 0:02:20]} 10. Nxe4 {[%clk 0:01:30]}  dxe4 {[%clk 0:02:20]} 11. Bxe4 {[%clk 0:01:30]}  O-O-O {[%clk 0:02:17]} 12. O-O {[%clk 0:01:29]}  Bd6 {[%clk 0:02:16]} 13. h3 {[%clk 0:01:26]}  Bh5 {[%clk 0:02:15]} 14. c4 {[%clk 0:01:22]}  c5 {[%clk 0:02:14]} 15. Be3 {[%clk 0:01:12]}  Bxf3 {[%clk 0:02:00]} 16. Bxf3 {[%clk 0:01:09]}  g5 {[%clk 0:01:45]} 17. b4 {[%clk 0:01:00]}  cxd4 {[%clk 0:01:14]} 18. c5 {[%clk 0:01:00]}  Qb5 {[%clk 0:00:58]} 19. a4 {[%clk 0:00:49]}  Qxb4 {[%clk 0:00:41]} 20. Rb1 {[%clk 0:00:46]}  Qxc5 {[%clk 0:00:35]} 21. Bxd4 {[%clk 0:00:37]}  Qa5 {[%clk 0:00:26]} 22. Bc3 {[%clk 0:00:31]}  Qxc3 {[%clk 0:00:22]} 23. Rc1 {[%clk 0:00:29]}  Qxc1 {[%clk 0:00:21]} 24. Qxc1+ {[%clk 0:00:30]}  Nc5 {[%clk 0:00:21]} 25. Qb2 {[%clk 0:00:27]}  Be5 {[%clk 0:00:18]} 26. Qb5 {[%clk 0:00:27]}  b6 {[%clk 0:00:18]} 27. Qc6+ {[%clk 0:00:25]}  Kb8 {[%clk 0:00:17]} 28. Qa8+ {[%clk 0:00:25]}  Kc7 {[%clk 0:00:17]} 29. Qxa7+ {[%clk 0:00:25]}  Kc8 {[%clk 0:00:12]} 30. Qxb6 {[%clk 0:00:23]}  Bd4 {[%clk 0:00:09]} 31. Rc1 {[%clk 0:00:21]}  Kd7 {[%clk 0:00:08]} 32. Rxc5 {[%clk 0:00:20]}  Bxc5 {[%clk 0:00:09]} 33. Qxc5 {[%clk 0:00:20]}  Rhf8 {[%clk 0:00:07]} 34. Bc6+ {[%clk 0:00:18]}  Ke6 {[%clk 0:00:07]} 35. Bb5 {[%clk 0:00:18]}  Rd1+ {[%clk 0:00:06]} 36. Kh2 {[%clk 0:00:18]}  Rfd8 {[%clk 0:00:06]} 37. Bc4+ {[%clk 0:00:16]}  Kd7 {[%clk 0:00:04]} 38. a5 {[%clk 0:00:16]}  Rd6 {[%clk 0:00:03]} 39. a6 {[%clk 0:00:15]}  Rc8 {[%clk 0:00:03]} 40. Qb5+ {[%clk 0:00:15]}  Ke7 {[%clk 0:00:02]} 41. a7 {[%clk 0:00:15]}  Rdd8 {[%clk 0:00:03]} 42. Qb7+ {[%clk 0:00:14]}  Kd6 {[%clk 0:00:02]} 43. Bd5 {[%clk 0:00:14]}  Ke5 {[%clk 0:00:01]} 44. a8=Q {[%clk 0:00:14]}  Rxa8 {[%clk 0:00:01]} 45. Qxa8 {[%clk 0:00:15]}  Rxd5 {[%clk 0:00:00]} 46. Qh8 {[%clk 0:00:11]} 1-0


[Site "https://www.chess.com"]